fUSD/lending_fUSD_20251122
["ID","MTS","AMOUNT","RATE_DAILY","PERIOD"]
[394613315,1763769604938,188.78,0.000148,5]
[394613333,1763770201304,150.0,0.00014877,120]
[394613337,1763770231572,-150.0,0.00014877,2]
[394613338,1763770231582,-1200.0,0.00014943,2]
[394613339,1763770231592,-9799.08,0.00014944,2]
[394613340,1763770231601,-300.0,0.0001497,2]
[394613341,1763770231610,-250.0,0.00014971,2]
[394613342,1763770231619,-1000.0,0.00015,2]
[394613343,1763770231629,-301.204586,0.00015169,2]
[394613344,1763770231639,-500.0,0.000154,2]
[394613345,1763770231649,-160.0,0.000155,2]
[394613346,1763770231658,-160.0,0.000155,2]
[394613347,1763770231667,-160.0,0.000155,2]
[394613348,1763770231676,-160.0,0.000155,2]
[394613349,1763770231685,-305.49926359,0.000155,2]
[394613350,1763770231695,-17000.2651294,0.00015635,2]
[394613357,1763770232226,-7491.94595735,0.00015635,2]
[394613358,1763770232238,-3184.03611325,0.00015635,2]
[394613359,1763770232247,-459.91518,0.0001572,2]
[394613360,1763770232256,-1200.0,0.00015733,2]
[394613361,1763770232266,-1000.0,0.00015734,2]
[394613362,1763770232276,-300.0,0.00015734,2]
[394613363,1763770232286,-47503.4328,0.00015735,2]
[394613364,1763770232296,-234.9799,0.00015735,2]
[394613365,1763770232306,-6090.93185717,0.00015773,2]
[394613366,1763770232315,-150.65550955,0.00015773,2]
[394613367,1763770232325,-167.52940859,0.00015773,2]
[394613368,1763770232334,-1114.39070364,0.00015773,2]
[394613369,1763770232346,-151.0,0.00015826,2]
[394613370,1763770232355,-288.88423525,0.00015826,2]
[394613371,1763770232364,-186.25665253,0.00015826,2]
[394613372,1763770232374,-500.0,0.00015826,2]
[394613373,1763770232385,-278.704404,0.00015826,2]
[394613374,1763770232394,-500.0,0.0001583,2]
[394613375,1763770232403,-500.0,0.0001583,2]
[394613376,1763770232413,-500.0,0.0001583,2]
[394613377,1763770232423,-500.0,0.0001583,2]
[394613378,1763770232432,-500.0,0.0001583,2]
[394613379,1763770232441,-500.0,0.0001583,2]
[394613380,1763770232451,-500.0,0.0001583,2]
[394613381,1763770232459,-500.0,0.0001583,2]
[394613382,1763770232469,-500.0,0.0001583,2]
[394613383,1763770232478,-500.0,0.0001583,2]
[394613384,1763770232488,-500.0,0.0001583,2]
[394613385,1763770232497,-500.0,0.0001583,2]
[394613386,1763770232507,-500.0,0.0001583,2]
[394613387,1763770232521,-500.0,0.0001583,2]
[394613388,1763770232530,-500.0,0.0001583,2]
[394613389,1763770232539,-500.0,0.0001583,2]
[394613390,1763770232549,-500.0,0.0001583,2]
[394613391,1763770232559,-500.0,0.0001583,2]
[394613392,1763770232569,-500.0,0.0001583,2]
[394613393,1763770232578,-500.0,0.0001583,2]
[394613394,1763770232588,-500.0,0.0001583,2]
[394613395,1763770232598,-500.0,0.0001583,2]
[394613396,1763770232607,-500.0,0.0001583,2]
[394613397,1763770232617,-500.0,0.0001583,2]
[394613398,1763770232627,-500.0,0.0001583,2]
[394613399,1763770232637,-500.0,0.0001583,2]
[394613400,1763770232646,-500.0,0.0001583,2]
[394613401,1763770232655,-500.0,0.0001583,2]
[394613402,1763770232665,-500.0,0.0001583,2]
[394613403,1763770232676,-571.11463409,0.0001583,2]
[394613404,1763770232685,-500.0,0.0001583,2]
[394613405,1763770232695,-500.0,0.0001583,2]
[394613406,1763770232705,-500.0,0.0001583,2]
[394613407,1763770232716,-500.0,0.0001583,2]
[394613408,1763770232725,-500.0,0.0001583,2]
[394613409,1763770232736,-500.0,0.0001583,2]
[394613410,1763770232745,-500.0,0.0001583,2]
[394613411,1763770232754,-500.0,0.0001583,2]
[394613412,1763770232765,-500.0,0.0001583,2]
[394613413,1763770232774,-500.0,0.0001583,2]
[394613414,1763770232783,-500.0,0.0001583,2]
[394613415,1763770232793,-500.0,0.0001583,2]
[394613416,1763770232802,-500.0,0.0001583,2]
[394613417,1763770232811,-500.0,0.0001583,2]
[394613418,1763770232821,-500.0,0.0001583,2]
[394613419,1763770232830,-500.0,0.0001583,2]
[394613420,1763770232839,-500.0,0.0001583,2]
[394613421,1763770232849,-500.0,0.0001583,2]
[394613422,1763770232859,-500.0,0.0001583,2]
[394613423,1763770232868,-500.0,0.0001583,2]
[394613424,1763770232880,-500.0,0.0001583,2]
[394613425,1763770232891,-500.0,0.0001583,2]
[394613426,1763770232900,-230.62363686,0.0001583,2]
[394613427,1763770232910,-500.0,0.0001583,2]
[394613428,1763770232920,-500.0,0.0001583,2]
[394613429,1763770232929,-500.0,0.0001583,2]
[394613430,1763770232939,-500.0,0.0001583,2]
[394613431,1763770232948,-500.0,0.0001583,2]
[394613432,1763770232959,-500.0,0.0001583,2]
[394613433,1763770232971,-500.0,0.0001583,2]
[394613434,1763770232980,-500.0,0.0001583,2]
[394613435,1763770232989,-500.0,0.0001583,2]
[394613436,1763770232999,-500.0,0.0001583,2]
[394613437,1763770233010,-500.0,0.0001583,2]
[394613438,1763770233019,-500.0,0.0001583,2]
[394613439,1763770233028,-500.0,0.0001583,2]
[394613440,1763770233038,-500.0,0.0001583,2]
[394613441,1763770233047,-500.0,0.0001583,2]
[394613442,1763770233056,-500.0,0.0001583,2]
[394613443,1763770233066,-500.0,0.0001583,2]
[394613444,1763770233075,-500.0,0.0001583,2]
[394613445,1763770233084,-500.0,0.0001583,2]
[394613446,1763770233093,-500.0,0.0001583,2]
[394613447,1763770233103,-223.06236369,0.0001583,2]
[394613448,1763770233112,-500.0,0.0001583,2]
[394613449,1763770233121,-500.0,0.0001583,2]
[394613450,1763770233131,-500.0,0.0001583,2]
[394613451,1763770233140,-500.0,0.0001583,2]
[394613452,1763770233149,-500.0,0.0001583,2]
[394613453,1763770233158,-500.0,0.0001583,2]
[394613454,1763770233167,-371.75,0.00015832,2]
[394613455,1763770233176,-851.792,0.00015833,2]
[394613456,1763770233186,-156.714,0.00015833,2]
[394613457,1763770233195,-883.88,0.00015833,2]
[394613458,1763770233206,-768.05,0.00015833,2]
[394613459,1763770233215,-999.99,0.00015833,2]
[394613460,1763770233224,-1199.74,0.00015833,2]
[394613461,1763770233233,-150.99,0.00015833,2]
[394613462,1763770233242,-500.0,0.00015833,2]
[394613463,1763770233251,-200.0,0.00015833,2]
[394613464,1763770233261,-200.0,0.00015833,2]
[394613465,1763770233270,-244.0,0.00015833,2]
[394613466,1763770233279,-150.0,0.00015834,2]
[394613467,1763770233288,-200.0,0.00015834,2]
[394613468,1763770233298,-200.0,0.00015834,2]
[394613469,1763770233307,-500.0,0.00015834,2]
[394613470,1763770233316,-500.0,0.00015834,2]
[394613471,1763770233328,-500.0,0.00015834,2]
[394613472,1763770233338,-379.37,0.00015834,2]
[394613473,1763770233347,-200.0,0.00015834,2]
[394613474,1763770233357,-200.0,0.00015834,2]
[394613475,1763770233367,-899.89,0.00015834,2]
[394613476,1763770233376,-899.89,0.00015834,2]
[394613477,1763770233387,-899.89,0.00015834,2]
[394613478,1763770233397,-151.0,0.00015835,2]
[394613479,1763770233407,-151.0,0.00015835,2]
[394613480,1763770233416,-151.0,0.00015835,2]
[394613481,1763770233425,-220.525718,0.00015835,2]
[394613482,1763770233434,-151.0,0.00015835,2]
[394613483,1763770233443,-151.0,0.00015835,2]
[394613484,1763770233452,-653.240225,0.00015835,2]
[394613485,1763770233462,-763.321874,0.00015835,2]
[394613486,1763770233471,-653.240225,0.00015835,2]
[394613487,1763770233480,-763.321874,0.00015835,2]
[394613488,1763770233489,-653.240225,0.00015835,2]
[394613489,1763770233499,-763.321874,0.00015835,2]
[394613490,1763770233508,-653.240225,0.00015835,2]
[394613491,1763770233519,-763.321874,0.00015835,2]
[394613492,1763770233529,-500.0,0.00015873,2]
[394613493,1763770233542,-501.11720576,0.00015873,2]
[394613494,1763770233552,-500.0,0.00015873,2]
[394613495,1763770233562,-500.0,0.00015873,2]
[394613496,1763770233572,-24.82773615,0.00015875,2]
[394613497,1763770233581,-151.0,0.00015875,2]
[394613498,1763770233590,-179.52968798,0.00015875,2]
[394613499,1763770233599,-150.0,0.00015881,2]
[394613500,1763770233608,-344.16,0.00015906,2]
[394613501,1763770233617,-500.0,0.00015936,2]
[394613502,1763770233627,-500.0,0.00015936,2]
[394613503,1763770233638,-500.0,0.00015936,2]
[394613504,1763770233648,-500.0,0.0001597,2]
[394613505,1763770233657,-200.0,0.00015971,2]
[394613506,1763770233667,-6090.9318571,0.00016009,2]
[394613507,1763770233675,-1114.39070356,0.00016009,2]
[394613508,1763770233684,-1210.76,0.00016075,2]
[394613509,1763770233694,-371.75,0.00016106,2]
[394613510,1763770233703,-200.0,0.00016107,2]
[394613511,1763770233712,-1425.77,0.00016137,2]
[394613512,1763770233721,-999.0,0.00016154,3]
[394613513,1763770233730,-1043.62,0.00016159,2]
[394613514,1763770233740,-166.66,0.00016181,2]
[394613515,1763770233750,-165.97531298,0.000162,2]
[394613516,1763770233759,-157.5149362,0.000162,2]
[394613517,1763770233768,-1805.75,0.00016231,2]
[394613518,1763770233779,-6090.9318571,0.00016246,2]
[394613519,1763770233788,-1114.39070356,0.00016246,2]
[394613520,1763770233797,-151.0,0.00016246,2]
[394613521,1763770233807,-151.0,0.00016246,2]
[394613522,1763770233815,-151.0,0.00016246,2]
[394613523,1763770233825,-8957.93,0.00016281,2]
[394613524,1763770233834,-200.0,0.00016281,2]
[394613525,1763770233844,-1763.41,0.00016328,2]
[394613526,1763770233854,-500.0,0.00016374,2]
[394613527,1763770233863,-371.75,0.0001638,2]
[394613528,1763770233874,-229.0,0.00016385,2]
[394613529,1763770233887,-1539.0,0.00016437,2]
[394613530,1763770233895,-151.0,0.00016438,2]
[394613531,1763770233905,-151.0,0.00016438,2]
[394613532,1763770233915,-360.93199095,0.00016438,2]
[394613533,1763770233924,-653.240225,0.00016438,2]
[394613534,1763770233933,-653.240225,0.00016438,2]
[394613535,1763770233942,-763.321874,0.00016438,2]
[394613536,1763770233953,-653.240225,0.00016438,2]
[394613537,1763770233963,-763.321874,0.00016438,2]
[394613538,1763770233971,-763.321874,0.00016438,2]
[394613539,1763770233981,-653.240225,0.00016438,2]
[394613540,1763770233990,-653.240225,0.00016438,2]
[394613541,1763770233999,-763.321874,0.00016438,2]
[394613542,1763770234008,-653.240225,0.00016438,2]
[394613543,1763770234018,-763.321874,0.00016438,2]
[394613544,1763770234027,-763.321874,0.00016438,2]
[394613545,1763770234036,-653.240225,0.00016438,2]
[394613546,1763770234045,-653.240225,0.00016438,2]
[394613547,1763770234055,-763.321874,0.00016438,2]
[394613548,1763770234063,-653.240225,0.00016438,2]
[394613549,1763770234072,-763.321874,0.00016438,2]
[394613550,1763770234081,-653.240225,0.00016438,2]
[394613551,1763770234090,-653.240225,0.00016438,2]
[394613552,1763770234099,-653.240225,0.00016438,2]
[394613553,1763770234108,-763.321874,0.00016438,2]
[394613554,1763770234117,-763.321874,0.00016438,2]
[394613555,1763770234126,-763.321874,0.00016438,2]
[394613556,1763770234136,-763.321874,0.00016438,2]
[394613557,1763770234145,-250.0,0.00016438,2]
[394613558,1763770234154,-1691.48,0.00016438,2]
[394613559,1763770234163,-421.11,0.00016438,2]
[394613560,1763770234172,-151.0,0.00016438,2]
[394613561,1763770234181,-151.0,0.00016438,2]
[394613562,1763770234190,-160.849486,0.00016438,2]
[394613563,1763770234199,-151.0,0.00016438,2]
[394613564,1763770234208,-151.0,0.00016438,2]
[394613565,1763770234218,-260.074285,0.00016438,2]
[394613566,1763770234227,-151.0,0.00016438,2]
[394613567,1763770234237,-260.074285,0.00016438,2]
[394613568,1763770234246,-260.074285,0.00016438,2]
[394613569,1763770234255,-260.074285,0.00016438,2]
[394613570,1763770234264,-151.0,0.00016438,2]
[394613571,1763770234273,-151.0,0.00016438,2]
[394613572,1763770234282,-151.0,0.00016438,2]
[394613573,1763770234292,-151.0,0.00016438,2]
[394613574,1763770234301,-151.0,0.00016438,2]
[394613575,1763770234312,-151.0,0.00016438,2]
[394613576,1763770234321,-151.0,0.00016438,2]
[394613577,1763770234330,-151.0,0.00016438,2]
[394613578,1763770234340,-151.0,0.00016438,2]
[394613579,1763770234356,-151.0,0.00016438,2]
[394613580,1763770234366,-151.0,0.00016438,2]
[394613581,1763770234376,-151.0,0.00016438,2]
[394613582,1763770234385,-151.0,0.00016438,2]
[394613583,1763770234395,-151.0,0.00016438,2]
[394613584,1763770234404,-230.699096,0.00016438,2]
[394613585,1763770234414,-958.694297,0.00016438,2]
[394613586,1763770234424,-958.694297,0.00016438,2]
[394613587,1763770234434,-958.694297,0.00016438,2]
[394613588,1763770234443,-958.694297,0.00016438,2]
[394613589,1763770234452,-151.698678,0.00016438,2]
[394613590,1763770234461,-164.386143,0.00016438,2]
[394613591,1763770234471,-266.40574,0.00016438,2]
[394613592,1763770234481,-266.40574,0.00016438,2]
[394613593,1763770234491,-266.40574,0.00016438,2]
[394613594,1763770234501,-266.40574,0.00016438,2]
[394613595,1763770234510,-266.40574,0.00016438,2]
[394613596,1763770234520,-266.40574,0.00016438,2]
[394613597,1763770234529,-266.40574,0.00016438,2]
[394613598,1763770234539,-266.40574,0.00016438,2]
[394613599,1763770234549,-151.0,0.00016438,2]
[394613600,1763770234559,-212.391828,0.00016438,2]
[394613601,1763770234568,-151.0,0.00016438,2]
[394613602,1763770234578,-151.0,0.00016438,2]
[394613603,1763770234588,-151.0,0.00016438,2]
[394613604,1763770234598,-151.0,0.00016438,2]
[394613605,1763770234608,-151.0,0.00016438,2]
[394613606,1763770234617,-151.0,0.00016438,2]
[394613607,1763770234627,-151.0,0.00016438,2]
[394613608,1763770234638,-151.0,0.00016438,2]
[394613609,1763770234648,-151.0,0.00016438,2]
[394613610,1763770234659,-200.412908,0.00016438,2]
[394613611,1763770234668,-151.0,0.00016438,2]
[394613612,1763770234677,-151.0,0.00016438,2]
[394613613,1763770234687,-151.0,0.00016438,2]
[394613614,1763770234696,-151.0,0.00016438,2]
[394613615,1763770234705,-151.0,0.00016438,2]
[394613616,1763770234715,-156.655198,0.00016438,2]
[394613617,1763770234724,-157.552232,0.00016438,2]
[394613618,1763770234734,-157.552232,0.00016438,2]
[394613619,1763770234744,-157.552232,0.00016438,2]
[394613620,1763770234757,-157.552232,0.00016438,2]
[394613621,1763770234766,-157.552232,0.00016438,2]
[394613622,1763770234775,-157.552232,0.00016438,2]
[394613623,1763770234783,-157.552232,0.00016438,2]
[394613624,1763770234792,-157.552232,0.00016438,2]
[394613625,1763770234801,-151.0,0.00016438,2]
[394613626,1763770234811,-151.0,0.00016438,2]
[394613627,1763770234820,-151.0,0.00016438,2]
[394613628,1763770234829,-211.780333,0.00016438,2]
[394613629,1763770234840,-151.0,0.00016438,2]
[394613630,1763770234849,-151.0,0.00016438,2]
[394613631,1763770234859,-500.0,0.00016438,2]
[394613632,1763770234868,-768.794319,0.00016438,2]
[394613633,1763770234880,-768.794319,0.00016438,2]
[394613634,1763770234891,-768.794319,0.00016438,2]
[394613635,1763770234900,-151.0,0.00016438,2]
[394613636,1763770234910,-151.0,0.00016438,2]
[394613637,1763770234920,-768.794319,0.00016438,2]
[394613638,1763770234932,-151.0,0.00016438,2]
[394613639,1763770234941,-151.0,0.00016438,2]
[394613640,1763770234952,-768.794319,0.00016438,2]
[394613641,1763770234962,-768.794319,0.00016438,2]
[394613642,1763770234971,-151.0,0.00016438,2]
[394613643,1763770234981,-151.0,0.00016438,2]
[394613644,1763770234990,-768.794319,0.00016438,2]
[394613645,1763770234999,-768.794319,0.00016438,2]
[394613646,1763770235008,-151.0,0.00016438,2]
[394613647,1763770235017,-151.0,0.00016438,2]
[394613648,1763770235026,-151.0,0.00016438,2]
[394613649,1763770235035,-166.663224,0.00016438,2]
[394613650,1763770235045,-151.0,0.00016438,2]
[394613651,1763770235054,-151.0,0.00016438,2]
[394613652,1763770235064,-151.0,0.00016438,2]
[394613653,1763770235075,-151.0,0.00016438,2]
[394613654,1763770235084,-893.818125,0.00016438,2]
[394613655,1763770235094,-893.818125,0.00016438,2]
[394613656,1763770235103,-151.0,0.00016438,2]
[394613657,1763770235112,-893.818125,0.00016438,2]
[394613658,1763770235122,-151.0,0.00016438,2]
[394613659,1763770235131,-893.818125,0.00016438,2]
[394613660,1763770235141,-893.818125,0.00016438,2]
[394613661,1763770235151,-893.818125,0.00016438,2]
[394613662,1763770235160,-151.0,0.00016438,2]
[394613663,1763770235170,-893.818125,0.00016438,2]
[394613664,1763770235181,-151.0,0.00016438,2]
[394613665,1763770235191,-893.818125,0.00016438,2]
[394613666,1763770235202,-151.0,0.00016438,2]
[394613667,1763770235211,-893.818125,0.00016438,2]
[394613668,1763770235222,-893.818125,0.00016438,2]
[394613669,1763770235231,-893.818125,0.00016438,2]
[394613670,1763770235243,-893.818125,0.00016438,2]
[394613671,1763770235252,-155.92961,0.00016438,2]
[394613672,1763770235262,-154.344909,0.00016438,2]
[394613673,1763770235271,-151.0,0.00016438,2]
[394613674,1763770235280,-151.0,0.00016438,2]
[394613675,1763770235289,-151.0,0.00016438,2]
[394613676,1763770235299,-2092.409133,0.00016438,2]
[394613677,1763770235309,-180.998021,0.00016438,2]
[394613678,1763770235319,-2092.409133,0.00016438,2]
[394613679,1763770235328,-2092.409133,0.00016438,2]
[394613680,1763770235338,-2092.409133,0.00016438,2]
[394613681,1763770235348,-2092.409133,0.00016438,2]
[394613682,1763770235359,-2092.409133,0.00016438,2]
[394613683,1763770235369,-151.0,0.00016438,2]
[394613684,1763770235379,-2092.409133,0.00016438,2]
[394613685,1763770235393,-245.701528,0.00016438,2]
[394613686,1763770235402,-2092.409133,0.00016438,2]
[394613687,1763770235413,-2092.409133,0.00016438,2]
[394613688,1763770235423,-2092.409133,0.00016438,2]
[394613689,1763770235432,-2092.409133,0.00016438,2]
[394613690,1763770235442,-2092.409133,0.00016438,2]
[394613691,1763770235451,-151.0,0.00016438,2]
[394613692,1763770235461,-151.0,0.00016438,2]
[394613693,1763770235471,-151.0,0.00016438,2]
[394613694,1763770235480,-151.0,0.00016438,2]
[394613695,1763770235491,-151.0,0.00016438,2]
[394613696,1763770235500,-115.55528422,0.00016438,2]
[394613697,1763770235518,-35.44471578,0.00016438,2]
[394613698,1763770235528,-151.0,0.00016438,2]
[394613699,1763770235538,-220.021502,0.00016438,2]
[394613700,1763770235547,-151.0,0.00016438,2]
[394613701,1763770235556,-220.021502,0.00016438,2]
[394613702,1763770235566,-151.0,0.00016438,2]
[394613703,1763770235575,-220.021502,0.00016438,2]
[394613704,1763770235585,-151.0,0.00016438,2]
[394613705,1763770235594,-151.0,0.00016438,2]
[394613706,1763770235603,-151.0,0.00016438,2]
[394613707,1763770235613,-151.0,0.00016438,2]
[394613708,1763770235623,-220.021502,0.00016438,2]
[394613709,1763770235632,-151.0,0.00016438,2]
[394613710,1763770235645,-151.0,0.00016438,2]
[394613711,1763770235655,-220.021502,0.00016438,2]
[394613712,1763770235664,-220.021502,0.00016438,2]
[394613713,1763770235673,-220.021502,0.00016438,2]
[394613714,1763770235683,-220.021502,0.00016438,2]
[394613715,1763770235694,-220.021502,0.00016438,2]
[394613716,1763770235703,-220.021502,0.00016438,2]
[394613717,1763770235712,-220.021502,0.00016438,2]
[394613718,1763770235722,-220.021502,0.00016438,2]
[394613719,1763770235731,-969.92621,0.00016438,2]
[394613720,1763770235741,-969.92621,0.00016438,2]
[394613721,1763770235751,-969.92621,0.00016438,2]
[394613722,1763770235760,-969.92621,0.00016438,2]
[394613723,1763770235769,-969.92621,0.00016438,2]
[394613724,1763770235779,-969.92621,0.00016438,2]
[394613725,1763770235788,-969.92621,0.00016438,2]
[394613726,1763770235798,-969.92621,0.00016438,2]
[394613727,1763770235808,-969.92621,0.00016438,2]
[394613728,1763770235817,-154.96135373,0.00016438,2]
[394613729,1763770235830,-814.96485627,0.00016438,2]
[394613730,1763770235839,-969.92621,0.00016438,2]
[394613731,1763770235848,-969.92621,0.00016438,2]
[394613732,1763770235858,-151.0,0.00016438,2]
[394613733,1763770235867,-151.0,0.00016438,2]
[394613734,1763770235878,-151.0,0.00016438,2]
[394613735,1763770235891,-212.380545,0.00016438,2]
[394613736,1763770235901,-427.863862,0.00016438,2]
[394613737,1763770235910,-277.3637672,0.00016438,2]
[394613738,1763770235927,-150.5000948,0.00016438,2]
[394613739,1763770235936,-427.863862,0.00016438,2]
[394613740,1763770235946,-192.97891691,0.00016438,2]
[394613741,1763770235958,-234.88494509,0.00016438,2]
[394613742,1763770235967,-358.80065334,0.00016438,2]
[394613765,1763770238449,-258.49867569,0.00016245,2]
[394613766,1763770238460,-241.50132431,0.00016245,2]
[394613767,1763770238549,-258.49867569,0.00016245,2]
[394613768,1763770238559,-181.62155273,0.00016245,2]
[394613769,1763770238569,-500.0,0.00016245,2]
[394613770,1763770238579,-212.24747536,0.00016245,2]
[394613771,1763770238588,-69.06320866,0.00016438,2]
[394613772,1763770238599,-427.863862,0.00016438,2]
[394613773,1763770238608,-427.863862,0.00016438,2]
[394613774,1763770238618,-427.863862,0.00016438,2]
[394613775,1763770238627,-427.863862,0.00016438,2]
[394613776,1763770238637,-427.863862,0.00016438,2]
[394613777,1763770238649,-427.863862,0.00016438,2]
[394613778,1763770238658,-427.863862,0.00016438,2]
[394613779,1763770238668,-427.863862,0.00016438,2]
[394613780,1763770238678,-427.863862,0.00016438,2]
[394613781,1763770238687,-427.863862,0.00016438,2]
[394613782,1763770238697,-427.863862,0.00016438,2]
[394613783,1763770238707,-151.0,0.00016438,2]
[394613784,1763770238716,-151.0,0.00016438,2]
[394613785,1763770238726,-151.0,0.00016438,2]
[394613786,1763770238735,-151.0,0.00016438,2]
[394613787,1763770238745,-151.0,0.00016438,2]
[394613788,1763770238755,-151.0,0.00016438,2]
[394613789,1763770238764,-151.0,0.00016438,2]
[394613790,1763770238773,-151.0,0.00016438,2]
[394613791,1763770238783,-151.0,0.00016438,2]
[394613792,1763770238792,-63.63838473,0.00016438,2]
[394613793,1763770238804,-87.36161527,0.00016438,2]
[394613794,1763770238814,-272.215285,0.00016438,2]
[394613795,1763770238823,-931.927653,0.00016438,2]
[394613796,1763770238833,-931.927653,0.00016438,2]
[394613797,1763770238842,-342.15157827,0.00016438,2]
[394613798,1763770238854,-573.66408346,0.00016438,2]
[394613799,1763770238865,-16.11199127,0.00016438,2]
[394613800,1763770238876,-931.927653,0.00016438,2]
[394613801,1763770238889,-931.927653,0.00016438,2]
[394613802,1763770238899,-931.927653,0.00016438,2]
[394613803,1763770238909,-931.927653,0.00016438,2]
[394613804,1763770238919,-931.927653,0.00016438,2]
[394613805,1763770238928,-931.927653,0.00016438,2]
[394613806,1763770238938,-472.33207381,0.00016438,2]
[394613813,1763770239842,-253.55232204,0.00016438,2]
[394613815,1763770239854,-206.04325715,0.00016438,2]
[394613817,1763770239863,-931.927653,0.00016438,2]
[394613820,1763770239873,-480.22728988,0.00016438,2]
[394613822,1763770239889,-451.70036312,0.00016438,2]
[394613824,1763770239901,-37.13563438,0.00016438,2]
[394613826,1763770239912,-894.79201862,0.00016438,2]
[394613828,1763770239923,-322.4396576,0.00016438,2]
[394613829,1763770239934,-609.4879954,0.00016438,2]
[394613830,1763770239943,-230.20109899,0.00016438,2]
[394613832,1763770239956,-701.72655401,0.00016438,2]
[394613834,1763770239966,-931.927653,0.00016438,2]
[394613836,1763770239975,-151.0,0.00016438,2]
[394613838,1763770239985,-151.0,0.00016438,2]
[394613840,1763770239994,-178.009525,0.00016438,2]
[394613842,1763770240004,-151.0,0.00016438,2]
[394613844,1763770240013,-151.0,0.00016438,2]
[394613846,1763770240023,-151.0,0.00016438,2]
[394613847,1763770240032,-151.0,0.00016438,2]
[394613848,1763770240042,-151.0,0.00016438,2]
[394613849,1763770240051,-271.33780908,0.00016438,2]
[394613850,1763770240064,-486.51339292,0.00016438,2]
[394613851,1763770240073,-151.0,0.00016438,2]
[394613852,1763770240083,-151.0,0.00016438,2]
[394613853,1763770240097,-615.93926708,0.00016438,2]
[394613854,1763770240109,-141.91193492,0.00016438,2]
[394613855,1763770240119,-757.851202,0.00016438,2]
[394613856,1763770240128,-757.851202,0.00016438,2]
[394613857,1763770240137,-151.0,0.00016438,2]
[394613858,1763770240148,-151.0,0.00016438,2]
[394613859,1763770240158,-151.0,0.00016438,2]
[394613860,1763770240168,-757.851202,0.00016438,2]
[394613861,1763770240177,-151.0,0.00016438,2]
[394613862,1763770240187,-196.826504,0.00016438,2]
[394613863,1763770240196,-757.851202,0.00016438,2]
[394613864,1763770240205,-151.0,0.00016438,2]
[394613865,1763770240214,-757.851202,0.00016438,2]
[394613866,1763770240223,-757.851202,0.00016438,2]
[394613867,1763770240232,-757.851202,0.00016438,2]
[394613868,1763770240242,-757.851202,0.00016438,2]
[394613869,1763770240252,-757.851202,0.00016438,2]
[394613870,1763770240261,-757.851202,0.00016438,2]
[394613871,1763770240270,-567.94833161,0.00016438,2]
[394613877,1763770243718,-151.0,0.00015905,2]
[394613878,1763770243729,-189.90287039,0.00016438,2]
[394613879,1763770243738,-416.3681746,0.00016438,2]
[394613880,1763770243750,-341.4830274,0.00016438,2]
[394613881,1763770243759,-50.9401926,0.00016438,2]
[394613882,1763770245464,-706.9110094,0.00016438,2]
[394613883,1763770245474,-246.35525467,0.00016438,2]
[394613884,1763770245496,-511.49594733,0.00016438,2]
[394613885,1763770245506,-7.73455967,0.00016438,2]
[394613886,1763770245518,-143.26544033,0.00016438,2]
[394613887,1763770245528,-151.0,0.00016438,2]
[394613888,1763770245538,-151.0,0.00016438,2]
[394613889,1763770245548,-151.0,0.00016438,2]